bitfinex/quotes_ETHUSD_20250519
["timestamp","ask_amount","ask_price","bid_price","bid_amount"]
[1747627052080,5.44748817,2386.4,2386.3,0.26371073]
[1747627052409,4.19076355,2386.2,2386.1,16.73]
[1747627052578,4.98776355,2386.2,2386.1,8.73]
[1747627052775,4.19093918,2386.1,2386.0,0.32811342]
[1747627053685,4.19093918,2386.1,2386.0,0.87811342]
[1747627054415,4.19093918,2386.1,2386.0,8.87811342]
[1747627054618,4.19093918,2386.1,2386.0,0.87811342]
[1747627055186,4.19093918,2386.1,2386.0,0.32811342]
[1747627055386,4.97253918,2386.1,2386.0,0.32811342]
[1747627055908,4.19129049,2385.9,2385.7,8.0]
[1747627056112,4.19146617,2385.8,2385.7,8.0]
[1747627056790,4.19164186,2385.7,2385.6,16.731]
[1747627060128,4.19164186,2385.7,2385.6,18.9541]
[1747627060486,4.19154491,2385.8,2385.7,0.55]
[1747627060791,4.19136543,2385.9,2385.7,0.55]
[1747627060998,4.19133366,2385.9,2385.7,8.55]
[1747627061203,4.19076355,2386.2,2385.9,0.55]
[1747627061401,4.19108668,2386.1,2385.9,8.55]
[1747627061636,4.1907821,2386.2,2385.9,8.55]
[1747627061830,4.19111483,2386.0,2385.9,8.55]
[1747627063009,4.19102242,2386.1,2385.9,8.81361489]
[1747627063239,4.19102242,2386.1,2385.9,9.96392353]
[1747627064108,4.19101127,2386.1,2385.9,9.96392353]
[1747627065017,4.19101127,2386.1,2386.0,0.26361489]
[1747627066507,4.19076355,2386.2,2386.1,0.55]
[1747627067108,0.7874,2387.0,2386.3,0.55]
[1747627067313,8.722,2386.9,2386.3,1.3466]
[1747627067727,4.19024161,2386.5,2386.3,1.3466]
[1747627068749,4.19012054,2386.6,2386.5,0.55]
[1747627069260,4.18953454,2386.9,2386.5,0.55]
[1747627069461,0.7874,2387.2,2386.7,0.55]
[1747627069773,4.18967239,2386.9,2386.7,8.55]
[1747627070069,4.18958326,2386.9,2386.7,10.2782]
[1747627071165,8.719,2387.2,2386.7,11.0748]
[1747627071359,4.18931784,2387.1,2386.7,11.0748]
[1747627071872,4.18908303,2387.2,2386.7,11.38327045]
[1747627072076,4.18882782,2387.4,2387.0,0.764]
[1747627072388,4.18831998,2387.6,2387.3,0.55]
[1747627072746,4.18865711,2387.4,2387.3,0.55]
[1747627072948,4.18865711,2387.4,2387.3,17.267]
[1747627073888,4.18856155,2387.5,2387.3,17.267]
[1747627074250,4.18865711,2387.4,2387.3,17.267]
[1747627074643,4.18865711,2387.4,2387.3,20.8031]
[1747627075571,4.18857463,2387.5,2387.3,20.8031]
[1747627076396,4.18837813,2387.6,2387.3,20.8031]
[1747627076572,4.18837813,2387.6,2387.5,0.55]
[1747627077093,4.18816088,2387.7,2387.3,11.5361]
[1747627077094,4.18865711,2387.4,2387.3,11.5361]
[1747627077410,4.18865711,2387.4,2387.3,20.8021]
[1747627077609,4.18865711,2387.4,2387.3,16.716]
[1747627078105,4.18857785,2387.5,2387.3,17.266]
[1747627078802,4.18865711,2387.4,2387.3,17.266]
[1747627079012,4.18848167,2387.5,2387.4,0.55]
[1747627079187,4.18886457,2387.3,2387.1,8.715]
[1747627079386,4.18900804,2387.2,2387.1,8.715]
[1747627079913,4.96010804,2387.2,2387.1,8.715]
[1747627080115,4.18900804,2387.2,2387.1,8.715]
[1747627080274,4.18900804,2387.2,2387.1,9.265]
[1747627081295,4.18971007,2386.8,2386.7,0.30847045]
[1747627081505,4.19023674,2386.5,2386.4,18.8746]
[1747627081689,4.19023674,2386.5,2386.4,36.72427134]
[1747627081891,4.19023674,2386.5,2386.4,28.72427134]
[1747627082208,4.19023674,2386.5,2386.4,37.27427134]
[1747627083333,8.709,2387.5,2386.8,0.55]
[1747627083476,4.18949602,2387.0,2386.9,8.715]
[1747627083975,4.19006117,2386.6,2386.5,8.0]
[1747627084203,4.19006117,2386.6,2386.5,17.265]
[1747627085313,4.19023674,2386.5,2386.4,18.089]
[1747627086689,4.19041233,2386.4,2386.1,0.32811342]
[1747627087008,4.19076355,2386.2,2386.1,9.59411342]
[1747627087397,4.19076355,2386.2,2386.1,9.266]
[1747627087612,4.19129049,2385.9,2385.8,8.0]
[1747627087912,4.19129049,2385.9,2385.8,17.266]
[1747627088117,4.19076375,2386.2,2385.9,0.55]
[1747627088290,4.19027748,2386.5,2385.9,0.55]
[1747627088488,4.19041233,2386.4,2386.1,1.3368]
[1747627089075,4.19061607,2386.3,2386.1,1.3368]
[1747627089478,4.19049483,2386.4,2386.1,1.3368]
[1747627090138,4.19060464,2386.3,2386.1,1.3368]
[1747627090279,4.19060464,2386.3,2386.2,17.53086836]
[1747627090716,4.19060464,2386.3,2386.2,16.98086836]
[1747627091132,4.19060464,2386.3,2386.2,17.53086836]
[1747627091429,4.19060464,2386.3,2386.2,19.2839552]
[1747627091726,4.19027602,2386.5,2386.3,0.55]
[1747627091926,4.19024091,2386.5,2386.4,9.267]
[1747627093531,4.19024091,2386.5,2386.4,17.267]
[1747627095418,4.19024091,2386.5,2386.4,0.55]
[1747627097542,4.19014446,2386.6,2386.5,0.55]
[1747627097686,4.19058793,2386.3,2386.2,1.3122]
[1747627098020,13.67726879,2387.0,2386.3,8.55]
[1747627098198,4.19017238,2386.6,2386.3,8.55]
[1747627098609,4.19017238,2386.6,2386.5,0.55]
[1747627098800,4.19017238,2386.6,2386.5,17.267]
[1747627099216,4.19017238,2386.6,2386.5,8.55]
[1747627099403,4.19017238,2386.6,2386.5,17.267]
[1747627099794,4.19017238,2386.6,2386.5,9.267]
[1747627100195,4.19058793,2386.3,2386.2,1.3122]
[1747627100524,4.19058793,2386.3,2386.2,17.267]
[1747627100727,4.19058793,2386.3,2386.2,8.717]
[1747627100925,4.19093918,2386.1,2386.0,0.32811342]
[1747627101159,4.19093918,2386.1,2386.0,10.35936056]
[1747627101312,4.19065162,2386.3,2386.1,0.55]
[1747627101628,4.19065162,2386.3,2386.1,8.55]
[1747627101925,4.19024459,2386.5,2386.3,0.55]
[1747627102125,4.19041233,2386.4,2386.3,0.55]
[1747627102329,4.19093918,2386.1,2386.0,2.19236056]
[1747627102696,4.19093918,2386.1,2386.0,8.32811342]
[1747627102900,4.19093918,2386.1,2386.0,17.04511342]
[1747627103095,4.19093918,2386.1,2386.0,17.59511342]
[1747627103696,4.19093918,2386.1,2386.0,17.267]
[1747627104434,4.19093918,2386.1,2386.0,8.55]
[1747627104629,4.19093918,2386.1,2386.0,17.25]
[1747627107405,4.19093918,2386.1,2386.0,17.51485112]
[1747627108232,4.19093918,2386.1,2386.0,8.81485112]
[1747627108533,4.19093918,2386.1,2386.0,0.26485112]
[1747627108534,5.02910988,2386.1,2386.0,0.26485112]
[1747627108721,9.49614855,2386.1,2386.0,0.26485112]
[1747627108933,18.19714855,2386.1,2386.0,0.26485112]
[1747627109156,18.19714855,2386.1,2385.0,26.796]
[1747627109157,4.19164186,2385.7,2385.2,0.32811342]
[1747627109450,5.01104477,2385.3,2385.2,0.32811342]
[1747627109601,6.76856464,2385.3,2385.2,0.32811342]
[1747627109944,4.19234477,2385.3,2385.2,0.32811342]
[1747627110145,4.19234477,2385.3,2385.2,0.87811342]
[1747627113247,4.19234477,2385.3,2385.2,0.55]
[1747627113610,4.19218911,2385.4,2385.3,0.55]
[1747627114149,0.7601,2385.9,2385.3,0.855]
[1747627114325,0.8381707,2386.1,2385.4,5.5983559]
[1747627114528,4.19146825,2385.8,2385.6,8.55]
[1747627114727,4.19138298,2385.9,2385.6,8.55]
[1747627115127,4.19058793,2386.3,2385.8,0.55]
[1747627115311,8.697,2386.5,2385.8,0.55]
[1747627115519,4.19129049,2385.9,2385.8,0.55]
[1747627115913,4.19119948,2386.0,2385.8,0.55]
[1747627116932,4.19119948,2386.0,2385.8,1.01020855]
[1747627117568,4.19023674,2386.5,2386.0,0.55]
[1747627117768,4.19061313,2386.3,2386.1,8.703]
[1747627118269,4.19076355,2386.2,2386.1,0.55]
[1747627118462,4.19076355,2386.2,2386.1,9.253]
[1747627119265,4.19045404,2386.4,2386.1,9.253]
[1747627119464,4.19076355,2386.2,2386.1,9.253]
[1747627120263,4.19061299,2386.3,2386.1,11.05752]
[1747627120473,4.19076355,2386.2,2386.1,11.05752]
[1747627120634,4.19076355,2386.2,2386.1,11.36648403]
[1747627121031,4.1906689,2386.3,2386.1,11.36648403]
[1747627121262,4.19076355,2386.2,2386.1,11.36648403]
[1747627121867,4.19076355,2386.2,2386.1,2.66348403]
[1747627122060,4.19076355,2386.2,2386.1,9.56096403]
[1747627122561,4.19076355,2386.2,2386.1,9.252]
[1747627124271,0.7751,2386.8,2386.1,17.55864111]
[1747627124471,4.19049977,2386.4,2386.3,0.55]
[1747627125850,4.19061868,2386.3,2386.2,8.702]
[1747627126876,4.19061868,2386.3,2386.2,0.55]
[1747627127079,4.98431868,2386.3,2386.2,0.55]
[1747627127573,4.19129049,2385.9,2385.8,0.55]
[1747627127775,4.19129049,2385.9,2385.8,9.252]
[1747627128176,4.19103298,2386.1,2385.8,9.252]
[1747627128177,4.19103298,2386.1,2386.0,0.55]
[1747627129978,0.7757,2386.8,2386.2,0.55]
[1747627130180,4.19056531,2386.4,2386.3,17.251]
[1747627133488,5.02336531,2386.4,2386.3,8.701]
[1747627133796,5.86144939,2386.4,2386.3,8.701]
[1747627134170,0.8328,2385.9,2385.7,0.32811342]
[1747627134374,4.19146617,2385.8,2385.7,0.32811342]
[1747627135408,4.19146617,2385.8,2385.7,0.55]
[1747627136479,4.19199329,2385.5,2385.4,8.57334208]
[1747627136773,4.19199329,2385.5,2385.4,9.12334208]
[1747627137467,4.19188506,2385.6,2385.5,0.55]
[1747627138004,9.5168,2386.1,2385.5,2.41326421]
[1747627138005,4.19130303,2385.9,2385.5,2.41326421]
[1747627138173,8.682,2386.0,2385.5,2.41326421]
[1747627138367,4.19181757,2385.6,2385.5,0.55]
[1747627138703,4.19181757,2385.6,2385.5,0.81462242]
[1747627138867,4.19181757,2385.6,2385.5,0.26462242]
[1747627139562,4.98041757,2385.6,2385.5,0.26462242]
[1747627139762,4.19252054,2385.2,2385.1,0.87811342]
[1747627140784,4.98892054,2385.2,2385.1,0.87811342]
[1747627141404,4.98892054,2385.2,2385.1,0.32811342]
[1747627141585,5.90354139,2385.2,2385.1,0.32811342]
[1747627141911,4.19287211,2385.0,2384.9,8.685]
[1747627143388,4.19287211,2385.0,2384.4,19.24531342]
[1747627143389,4.19339958,2384.7,2384.5,8.55]
[1747627143594,4.19357544,2384.6,2384.5,8.55]
[1747627143795,4.19357544,2384.6,2384.5,17.237]
[1747627144606,5.90363504,2385.2,2384.5,17.237]
[1747627144774,4.19315282,2384.9,2384.5,19.32410575]
[1747627144968,4.19325285,2384.8,2384.5,19.32410575]
[1747627145204,4.19312356,2384.9,2384.5,19.32410575]
[1747627145405,4.19323705,2384.8,2384.5,19.32410575]
[1747627146195,4.19249938,2385.3,2384.9,0.55]
[1747627146373,4.19252054,2385.2,2385.1,0.55]
[1747627150415,0.751,2385.5,2385.1,0.55]
[1747627150712,4.19189789,2385.6,2385.3,0.55]
[1747627150905,4.19189789,2385.6,2385.2,0.55]
[1747627150906,4.19234477,2385.3,2385.2,0.55]
[1747627151106,4.19234477,2385.3,2385.2,17.238]
[1747627151471,4.19234477,2385.3,2385.2,8.55]
[1747627151709,4.19234477,2385.3,2385.2,17.238]
[1747627152098,4.19234477,2385.3,2385.2,9.238]
[1747627152514,4.19304792,2384.9,2384.8,0.7765]
[1747627152717,4.19296499,2385.0,2384.9,8.0]
[1747627153587,5.01273281,2385.6,2385.2,0.55]
[1747627153588,0.8209,2385.6,2385.2,0.55]
[1747627153805,0.8247,2385.9,2385.2,0.55]
[1747627154007,4.19177175,2385.7,2385.2,0.55]
[1747627154218,4.19202057,2385.5,2385.4,0.55]
[1747627154423,4.19195237,2385.6,2385.4,0.55]
[1747627154795,4.19165671,2385.7,2385.4,0.55]
[1747627155122,4.19165671,2385.7,2385.4,0.87186588]
[1747627155320,4.19120574,2386.0,2385.7,0.55]
[1747627155518,4.19111483,2386.0,2385.7,0.55]
[1747627155819,4.19146617,2385.8,2385.7,0.55]
[1747627156026,4.19181564,2385.7,2385.5,0.55]
[1747627156322,4.19181564,2385.7,2385.5,1.73186457]
[1747627156516,4.19181564,2385.7,2385.6,16.687]
[1747627158728,4.19159517,2385.8,2385.7,8.55]
[1747627159024,4.19159517,2385.8,2385.7,0.55]
[1747627160796,0.7626,2386.5,2385.7,0.55]
[1747627160997,4.19095576,2386.1,2385.7,8.55]
[1747627161313,4.19146617,2385.8,2385.7,0.55]
[1747627161927,4.19136138,2385.9,2385.7,0.55]
[1747627162402,4.19121164,2386.0,2385.7,0.55]
[1747627162597,4.19121164,2386.0,2385.7,8.55]
[1747627163027,4.19130145,2385.9,2385.7,0.55]
[1747627163545,0.7666,2386.9,2385.9,0.55]
[1747627163709,4.19024877,2386.5,2386.1,0.55]
[1747627163916,4.19038951,2386.5,2386.2,8.669]
[1747627164239,4.19023984,2386.5,2386.2,8.669]
[1747627166045,4.18948776,2387.0,2386.5,0.55]
[1747627166220,4.18973378,2386.8,2386.5,0.55]
[1747627167236,4.18973378,2386.8,2386.5,0.59189801]
[1747627167531,4.408,2388.3,2386.5,0.59189801]
[1747627167532,0.7699,2387.3,2386.7,8.55]
[1747627167735,0.7664,2387.5,2386.9,9.3119]
[1747627167938,4.18895836,2387.3,2386.9,9.3119]
[1747627168340,4.18905324,2387.2,2386.9,9.3119]
[1747627168757,0.7664,2387.5,2386.9,9.3119]
[1747627168958,0.7664,2387.5,2386.9,8.55]
[1747627168959,4.18935902,2387.0,2386.9,8.55]
[1747627169119,4.18971007,2386.8,2386.7,0.55]
[1747627169323,4.18955373,2386.9,2386.7,17.217]
[1747627169524,4.18955373,2386.9,2386.7,18.41345847]
[1747627170265,4.18944889,2387.0,2386.7,18.41345847]
[1747627170469,4.1895517,2386.9,2386.7,18.72161567]
[1747627170669,4.18988561,2386.7,2386.6,0.7619]
[1747627170829,4.18935902,2387.0,2386.6,8.666]
[1747627171163,4.18988561,2386.7,2386.6,9.216]
[1747627171370,4.18973873,2386.8,2386.7,0.55]
[1747627171371,4.18979821,2386.8,2386.7,0.55]
[1747627172140,0.74570493,2386.8,2386.2,18.42711342]
[1747627172340,4.19058793,2386.3,2386.2,18.42711342]
[1747627172639,4.19058793,2386.3,2386.2,26.97711342]
[1747627172847,4.19058793,2386.3,2386.2,26.42711342]
[1747627173251,4.19058793,2386.3,2386.2,26.099]
[1747627173564,4.19076355,2386.2,2386.1,8.666]
[1747627174155,4.19076355,2386.2,2386.1,9.216]
[1747627174760,0.8321,2386.4,2385.8,8.666]
[1747627174941,4.19129049,2385.9,2385.8,9.216]
[1747627175142,4.19129049,2385.9,2385.8,8.666]
[1747627175365,4.19164186,2385.7,2385.6,8.0]
[1747627175566,4.19164186,2385.7,2385.6,8.666]
[1747627175786,4.19181757,2385.6,2385.5,27.08811342]
[1747627176246,4.19181757,2385.6,2385.5,27.31]
[1747627176661,4.19181757,2385.6,2385.5,26.76]
[1747627177649,4.19181757,2385.6,2385.5,8.666]
[1747627177888,5.03016351,2385.6,2385.5,8.666]
[1747627178484,4.19269632,2385.1,2385.0,0.31325792]
[1747627178683,4.19269632,2385.1,2385.0,8.97925792]
[1747627178886,4.95059632,2385.1,2385.0,0.31325792]
[1747627179195,4.95059632,2385.1,2384.7,0.32811342]
[1747627179196,4.19322375,2384.8,2384.7,0.32811342]
[1747627179570,4.19322375,2384.8,2384.7,0.87811342]
[1747627179757,4.19322375,2384.8,2384.7,0.32811342]
[1747627180189,4.19339958,2384.7,2384.6,9.216]
[1747627182634,4.19339958,2384.7,2384.6,0.55]
[1747627183987,0.8044,2385.5,2384.7,0.55]
[1747627184194,9.4604,2385.5,2384.7,0.55]
[1747627184393,13.6524116,2385.5,2384.7,0.55]
[1747627184598,4.19289704,2385.0,2384.7,0.55]
[1747627184793,4.19276668,2385.1,2384.7,0.55]
[1747627185020,4.19276668,2385.1,2384.9,0.55]
[1747627185224,4.19287211,2385.0,2384.9,9.219]
[1747627185716,4.19287211,2385.0,2384.9,17.219]
[1747627186025,4.19267339,2385.2,2384.9,17.219]
[1747627186220,4.1924312,2385.3,2385.0,0.8306]
[1747627186425,4.1924312,2385.3,2385.0,3.15729366]
[1747627187001,4.19220134,2385.4,2385.0,3.15729366]
[1747627187203,4.19211826,2385.5,2385.1,0.55]
[1747627187587,4.19178813,2385.7,2385.3,0.55]
[1747627187833,4.19178813,2385.7,2385.6,0.55]
[1747627189328,4.19252054,2385.2,2385.1,0.55]
[1747627189532,4.19269632,2385.1,2385.0,26.771]
[1747627189729,4.19322375,2384.8,2384.7,8.99711342]
[1747627190231,4.1931349,2384.9,2384.8,0.55]
[1747627190554,4.1931349,2384.9,2384.8,8.55]
[1747627190851,4.1931349,2384.9,2384.8,8.0]
[1747627190999,4.1931349,2384.9,2384.8,8.55]
[1747627192553,4.1931349,2384.9,2384.8,0.55]
[1747627196002,4.19322375,2384.8,2384.7,9.202]
[1747627197201,5.02492375,2384.8,2384.7,9.202]
[1747627197829,4.19410309,2384.3,2384.0,0.8095]
[1747627198239,4.194279,2384.2,2384.1,8.652]
[1747627199032,4.194279,2384.2,2384.1,9.202]
[1747627199235,4.19373094,2384.6,2384.2,0.55]
[1747627199438,8.648,2384.7,2384.2,0.55]
[1747627199636,4.19362245,2384.6,2384.2,1.3254]
[1747627199941,4.19395518,2384.4,2384.2,1.3254]
[1747627200161,1.72137634,2384.8,2384.2,2.35440414]
[1747627200162,0.807,2384.8,2384.2,2.35440414]
[1747627200440,0.807,2385.4,2384.7,1.3254]
[1747627200606,0.807,2385.4,2384.8,8.652]
[1747627200807,4.19308682,2384.9,2384.8,9.202]
[1747627201221,4.19308682,2384.9,2384.8,0.55]
[1747627201974,4.19423287,2384.3,2384.2,0.55]
[1747627202171,4.19375189,2384.5,2384.2,0.59193503]
[1747627202330,4.19322375,2384.8,2384.2,0.59193503]
[1747627202665,8.647,2385.0,2384.2,0.59193503]
[1747627202666,4.19392719,2384.4,2384.3,0.7649]
[1747627202864,4.19394558,2384.4,2384.2,0.55]
[1747627203164,4.194279,2384.2,2384.1,8.653]
[1747627203364,4.19402107,2384.4,2384.1,8.653]
[1747627203552,4.1940467,2384.4,2384.1,8.653]
[1747627203757,4.19380997,2384.5,2384.2,0.55]
[1747627203966,8.647,2384.7,2384.2,0.55]
[1747627204160,4.19410309,2384.3,2384.2,0.55]
[1747627204678,4.194279,2384.2,2384.1,8.653]
[1747627205172,4.194279,2384.2,2384.1,9.203]
[1747627205383,4.194279,2384.2,2384.1,0.55]
[1747627205541,0.774,2385.0,2384.3,0.8331]
[1747627205741,12.83814444,2384.9,2384.3,8.8331]
[1747627205938,8.645,2384.9,2384.3,0.8331]
[1747627206141,4.19370191,2384.6,2384.3,0.8331]
[1747627206342,4.19392719,2384.4,2384.3,0.8331]
[1747627206548,4.19392719,2384.4,2384.3,1.3831]
[1747627206750,4.19392719,2384.4,2384.3,0.81464911]
[1747627206949,14.09706009,2384.4,2384.3,0.26464911]
[1747627207147,5.45206009,2384.4,2384.3,0.26464911]
[1747627207346,4.19392719,2384.4,2384.3,0.26464911]
[1747627207604,4.19384748,2384.5,2384.3,0.26464911]
[1747627207748,0.8284,2385.3,2384.2,9.968]
[1747627207952,4.19083141,2386.2,2385.0,0.55]
[1747627207953,0.8284,2385.5,2385.0,0.55]
[1747627208382,4.19269632,2385.1,2385.0,9.203]
[1747627208750,4.19253031,2385.2,2385.0,9.203]
[1747627209151,4.19269632,2385.1,2385.0,9.203]
[1747627209397,4.99400231,2385.7,2385.0,9.83854626]
[1747627209695,0.8022,2385.7,2385.2,0.55]
[1747627209992,4.19207418,2385.5,2385.2,0.55]
[1747627210292,4.19200469,2385.5,2385.2,0.55]
[1747627210458,0.7642,2386.0,2385.2,0.86163285]
[1747627210788,4.19213466,2385.5,2385.2,0.86163285]
[1747627210954,4.19185182,2385.6,2385.2,0.86163285]
[1747627211155,4.1921129,2385.5,2385.4,0.55]
[1747627211575,4.19006117,2386.6,2385.7,0.55]
[1747627211792,9.06100612,2386.5,2385.8,8.653]
[1747627212009,4.19129049,2385.9,2385.6,8.653]
[1747627212172,4.19181757,2385.6,2385.5,0.55]
[1747627213006,4.19199329,2385.5,2385.3,0.26399362]
[1747627213161,4.19216902,2385.4,2385.2,8.651]
[1747627213357,4.19234477,2385.3,2385.2,8.651]
[1747627213591,4.19105228,2386.1,2385.5,4.19188768]
[1747627213857,4.19088303,2386.2,2385.6,0.55]
[1747627214170,4.19137858,2385.9,2385.7,8.651]
[1747627214593,4.19146617,2385.8,2385.7,8.651]
[1747627214799,4.19146617,2385.8,2385.7,9.201]
[1747627215994,4.19199329,2385.5,2385.3,0.7982]
[1747627216211,0.8271,2386.3,2385.4,0.55]
[1747627216359,8.638,2386.1,2385.4,0.55]
[1747627216560,8.638,2386.1,2385.4,4.74214259]
[1747627216756,4.19130353,2385.9,2385.4,0.55]
[1747627217085,4.19111994,2386.0,2385.3,13.64148411]
[1747627217086,4.19153013,2385.8,2385.6,0.55]
[1747627217287,4.19156992,2385.8,2385.4,0.55]
[1747627217595,0.8271,2386.3,2385.4,8.55]
[1747627217795,4.19089837,2386.2,2385.9,0.55]
[1747627217956,4.19111483,2386.0,2385.9,9.201]
[1747627218160,4.19105398,2386.1,2385.9,9.201]
[1747627219301,4.18962249,2386.9,2386.3,0.55]
[1747627219458,4.18970576,2386.9,2386.5,0.55]
[1747627219664,4.18909704,2387.2,2386.7,8.55]
[1747627219867,4.18893882,2387.3,2386.7,0.55]
[1747627220088,4.18893882,2387.3,2386.9,0.55]
[1747627220289,4.18909413,2387.2,2387.0,8.65]
[1747627220600,4.18903653,2387.2,2387.0,8.65]
[1747627220893,4.18889029,2387.3,2387.0,8.85534597]
[1747627221098,0.8252,2388.0,2387.3,0.55]
[1747627221395,4.18849537,2387.5,2387.3,1.54274]
[1747627222264,4.18838836,2387.6,2387.3,1.54274]
[1747627222490,4.18672807,2388.5,2387.3,1.31236422]
[1747627222705,4.18707867,2388.3,2387.4,0.55]
[1747627222891,4.53682598,2388.3,2387.5,8.648]
[1747627223066,4.53682598,2388.3,2387.5,0.55]
[1747627223067,4.18830624,2387.6,2387.5,0.55]
[1747627223568,4.18946991,2387.0,2386.7,0.7998]
[1747627223776,12.81981743,2387.9,2386.9,8.0]
[1747627223988,4.18928799,2387.1,2386.9,8.0]
[1747627224295,4.18935902,2387.0,2386.9,8.0]
[1747627224500,4.18953454,2386.9,2386.8,8.631]
[1747627225501,4.19002828,2386.7,2386.6,8.631]
[1747627225701,4.19076355,2386.2,2386.1,8.95911342]
[1747627226200,4.19025703,2386.5,2386.1,8.95911342]
[1747627226370,4.18960334,2386.9,2386.5,0.55]
[1747627226592,4.18960334,2386.9,2386.6,8.631]
[1747627226782,4.18960334,2386.9,2386.6,8.94933605]
[1747627227123,4.1893053,2387.1,2386.7,0.59189644]
[1747627227323,4.1891875,2387.1,2386.7,8.55]
[1747627227627,25.97832813,2388.3,2386.7,8.55]
[1747627227628,4.18737771,2388.2,2387.8,0.55]
[1747627227930,4.1875392,2388.1,2388.0,0.55]
[1747627228123,4.1875392,2388.1,2388.0,9.18]
[1747627228288,0.8117,2389.7,2388.2,0.7901]
[1747627228488,0.8117,2389.7,2388.5,0.55]
[1747627228693,4.18619342,2388.9,2388.7,0.55]
[1747627228911,0.8117,2389.7,2388.7,0.86309541]
[1747627229116,4.1859274,2389.0,2388.7,0.86309541]
[1747627229290,4.18582701,2389.1,2388.7,1.81240495]
[1747627229489,0.8117,2389.7,2388.7,1.81240495]
[1747627229490,4.18551332,2389.2,2388.7,1.81240495]
[1747627229708,4.18497593,2389.5,2388.7,1.81240495]
[1747627229986,4.18596337,2389.0,2388.7,1.81240495]
[1747627230214,4.18515108,2389.4,2388.7,1.81240495]
[1747627230406,4.18585182,2389.0,2388.9,0.55]
[1747627232393,4.18651971,2388.7,2388.4,9.26]
[1747627232592,4.18651971,2388.7,2388.6,0.55]
[1747627233627,7.6837754,2390.2,2389.6,4.73469959]
[1747627233931,3.5,2390.2,2389.8,8.55]
[1747627234431,7.68376748,2390.2,2389.8,8.55]
[1747627234735,7.68384328,2390.2,2390.0,0.55]
[1747627235132,3.5,2390.2,2390.0,8.55]
[1747627235437,4.1848008,2389.6,2388.8,18.084]
[1747627235599,4.18526589,2389.4,2389.3,8.0]
[1747627235995,4.18485354,2389.6,2389.3,8.0]
[1747627236311,4.18497593,2389.5,2389.4,0.55]
[1747627236935,4.18523346,2389.4,2389.1,0.55]
[1747627237237,4.18515108,2389.4,2389.3,8.55]
[1747627238554,3.5,2390.2,2390.0,1.3073]
[1747627238719,0.7989,2391.5,2390.2,0.55]
[1747627238720,12.436,2391.4,2390.2,0.55]
[1747627238904,3.5,2391.4,2390.4,0.55]
[1747627239112,3.5,2391.4,2390.6,12.73305028]
[1747627239337,3.5,2391.4,2390.6,0.55]
[1747627239534,4.18222672,2391.1,2390.6,0.55]
[1747627239738,7.82033496,2390.7,2390.6,0.55]
[1747627239938,4.18322526,2390.5,2390.4,9.473]
[1747627241023,4.18322526,2390.5,2390.4,0.55]
[1747627241732,4.18392535,2390.1,2390.0,27.003]
[1747627242148,4.18392535,2390.1,2390.0,27.553]
[1747627242546,4.18392535,2390.1,2390.0,27.003]
[1747627242910,4.18382621,2390.2,2390.1,0.55]
[1747627244060,4.18382621,2390.2,2389.2,4.1854923]
[1747627244061,4.18445058,2389.8,2389.6,8.921]
[1747627244376,8.91,2389.9,2389.3,0.7556]
[1747627244580,4.18513087,2389.5,2389.3,0.7556]
[1747627244778,4.18472885,2389.7,2389.3,0.7556]
[1747627244929,4.18340026,2390.4,2389.3,0.7556]
[1747627245313,4.18491298,2389.6,2389.4,0.55]
[1747627245432,8.908,2390.1,2389.3,8.7556]
[1747627245634,4.18515108,2389.4,2389.3,8.0]
[1747627245933,4.18515108,2389.4,2389.3,16.921]
[1747627247060,4.1850848,2389.5,2389.4,0.55]
[1747627248069,4.18464692,2389.7,2389.4,0.55]
[1747627248572,4.18491449,2389.6,2389.4,0.55]
[1747627248741,4.18465762,2389.7,2389.4,0.55]
[1747627249140,4.18497593,2389.5,2389.4,0.55]
[1747627249737,4.18441905,2389.9,2389.4,2.2971]
[1747627249932,24.74048905,2390.7,2389.4,2.2971]
[1747627249933,3.63745966,2390.7,2389.5,0.7605]
[1747627250247,4.1840817,2390.1,2389.6,8.55]
[1747627250770,4.18431022,2389.9,2389.6,0.55]
[1747627250981,4.18462568,2389.7,2389.6,0.55]
[1747627251183,8.881,2390.5,2389.6,0.55]
[1747627251478,4.18447125,2389.8,2389.6,1.65576]
[1747627251785,4.18327103,2390.5,2389.8,0.55]
[1747627252080,4.18370385,2390.3,2390.0,0.55]
[1747627252287,8.879,2390.6,2390.0,10.01204634]
[1747627252439,4.18350294,2390.4,2390.1,0.8011]
[1747627252640,4.18350294,2390.4,2390.2,0.55]
[1747627253386,4.18392535,2390.1,2389.8,8.8011]
[1747627253543,4.18427549,2389.9,2389.8,9.6724506]
[1747627254483,4.18417972,2390.0,2389.9,0.55]
[1747627255642,7.82047891,2390.7,2389.9,2.32913506]
[1747627255874,4.1838552,2390.2,2390.0,0.04183626]
[1747627256045,4.18408979,2390.1,2389.9,0.55]
[1747627256371,4.18410041,2390.0,2389.9,0.55]
[1747627259157,4.18410041,2390.0,2389.9,0.8136558]
[1747627259675,4.18410041,2390.0,2389.9,0.2636558]
[1747627260246,13.01510041,2390.0,2389.9,0.2636558]
[1747627260480,4.18515108,2389.4,2389.3,0.32811342]
[1747627260682,13.01915108,2389.4,2389.3,0.32811342]
[1747627260850,13.77435108,2389.4,2389.3,0.32811342]
[1747627261052,4.18550142,2389.2,2389.1,0.437048]
[1747627261246,4.94070142,2389.2,2389.1,0.437048]
[1747627261447,5.39189631,2389.2,2389.1,0.437048]
[1747627261943,22.22989631,2389.2,2389.1,0.0273155]
[1747627262856,4.18692843,2388.4,2387.8,9.2401902]
[1747627263059,4.18778005,2387.9,2387.8,8.919]
[1747627263949,4.18690336,2388.4,2387.8,9.8109]
[1747627264154,4.1866554,2388.6,2388.0,12.73757833]
[1747627264486,4.1866554,2388.6,2387.9,0.83257511]
[1747627264487,4.18580085,2389.1,2388.2,0.55]